[Event "Titled Tuesday Blitz May 9 Late 2023"]
[White "Almedina Ortiz, Edgardo J."]
[Black "Ardila, Oscar Humberto"]
[WhiteFideId "3100197"]
[BlackFideId "4404742"]
[WhiteElo "2217"]
[BlackElo "1918"]
[Result "0-1"]
[Round "06"]
[TimeControl "180+2"]
[Date "2023.05.09"]
[WhiteClock "0:00:00"]
[BlackClock "0:00:44"]

1. d4 {[%clk 0:03:00]}  Nf6 {[%clk 0:02:59]} 2. c4 {[%clk 0:02:59]}  g6 {[%clk 0:02:59]} 3. Nc3 {[%clk 0:02:59]}  Bg7 {[%clk 0:03:00]} 4. e4 {[%clk 0:02:59]}  d6 {[%clk 0:03:00]} 5. Nf3 {[%clk 0:02:59]}  O-O {[%clk 0:03:00]} 6. Be2 {[%clk 0:02:59]}  Nbd7 {[%clk 0:03:00]} 7. O-O {[%clk 0:02:58]}  e5 {[%clk 0:03:00]} 8. d5 {[%clk 0:02:52]}  Nc5 {[%clk 0:03:00]} 9. Qc2 {[%clk 0:02:51]}  a5 {[%clk 0:02:59]} 10. Ne1 {[%clk 0:02:49]}  c6 {[%clk 0:02:58]} 11. Be3 {[%clk 0:02:38]}  cxd5 {[%clk 0:02:57]} 12. cxd5 {[%clk 0:02:38]}  Bd7 {[%clk 0:02:56]} 13. Nd3 {[%clk 0:02:28]}  Ncxe4 {[%clk 0:02:53]} 14. Nxe4 {[%clk 0:02:20]}  Nxe4 {[%clk 0:02:53]} 15. Nxe5 {[%clk 0:02:16]}  Bxe5 {[%clk 0:02:52]} 16. Qxe4 {[%clk 0:02:16]}  Bxb2 {[%clk 0:02:48]} 17. Qf4 {[%clk 0:01:54]}  Qf6 {[%clk 0:02:31]} 18. Rab1 {[%clk 0:01:47]}  Bf5 {[%clk 0:02:22]} 19. Rxb2 {[%clk 0:01:44]}  Qxb2 {[%clk 0:02:21]} 20. Bc4 {[%clk 0:01:20]}  Qe5 {[%clk 0:02:18]} 21. Qh4 {[%clk 0:01:19]}  Qe4 {[%clk 0:02:13]} 22. Qf6 {[%clk 0:01:15]}  Qe5 {[%clk 0:02:06]} 23. Qh4 {[%clk 0:01:13]}  f6 {[%clk 0:01:41]} 24. Bd4 {[%clk 0:01:10]}  Qe4 {[%clk 0:01:37]} 25. Bxf6 {[%clk 0:01:10]}  Qxh4 {[%clk 0:01:36]} 26. Bxh4 {[%clk 0:01:09]}  Rac8 {[%clk 0:01:36]} 27. Bb5 {[%clk 0:00:47]}  Rc5 {[%clk 0:01:33]} 28. a4 {[%clk 0:00:47]}  Rf7 {[%clk 0:01:22]} 29. Bg3 {[%clk 0:00:42]}  Rf6 {[%clk 0:01:01]} 30. Re1 {[%clk 0:00:41]}  Kf7 {[%clk 0:01:00]} 31. Bh4 {[%clk 0:00:40]}  Bc2 {[%clk 0:00:57]} 32. Be8+ {[%clk 0:00:25]}  Kg7 {[%clk 0:00:57]} 33. Re7+ {[%clk 0:00:24]}  Kf8 {[%clk 0:00:54]} 34. Bxf6 {[%clk 0:00:24]}  Bxa4 {[%clk 0:00:52]} 35. Re1 {[%clk 0:00:15]}  Bxe8 {[%clk 0:00:52]} 36. Be7+ {[%clk 0:00:15]}  Kf7 {[%clk 0:00:51]} 37. Bxd6 {[%clk 0:00:15]}  Rxd5 {[%clk 0:00:50]} 38. Bf4 {[%clk 0:00:11]}  Bc6 {[%clk 0:00:49]} 39. h4 {[%clk 0:00:09]}  a4 {[%clk 0:00:46]} 40. Be5 {[%clk 0:00:06]}  a3 {[%clk 0:00:46]} 41. Bc3 {[%clk 0:00:05]}  Rd3 {[%clk 0:00:44]} 42. Bb4 {[%clk 0:00:00]}  a2 {[%clk 0:00:44]} 0-1


[Site "https://www.chess.com"]

[Event "Titled Tuesday Blitz May 9 Late 2023"]
[White "Celestino, Rafael Teixeira"]
[Black "Kiseljova, Marya"]
[WhiteFideId "2108925"]
[BlackFideId "4155009"]
[WhiteElo "2318"]
[BlackElo "1831"]
[Result "0-1"]
[Round "06"]
[TimeControl "180+2"]
[Date "2023.05.09"]
[WhiteClock "0:01:03"]
[BlackClock "0:01:29"]

1. e4 {[%clk 0:03:00]}  c5 {[%clk 0:02:59]} 2. Nf3 {[%clk 0:03:00]}  Nc6 {[%clk 0:02:59]} 3. d4 {[%clk 0:03:01]}  cxd4 {[%clk 0:03:00]} 4. Nxd4 {[%clk 0:03:01]}  g6 {[%clk 0:02:59]} 5. Nc3 {[%clk 0:03:01]}  Bg7 {[%clk 0:02:59]} 6. Be3 {[%clk 0:03:01]}  Nf6 {[%clk 0:02:59]} 7. Qd2 {[%clk 0:03:02]}  O-O {[%clk 0:02:58]} 8. Be2 {[%clk 0:03:02]}  d5 {[%clk 0:02:57]} 9. Nxc6 {[%clk 0:02:35]}  bxc6 {[%clk 0:02:58]} 10. exd5 {[%clk 0:02:30]}  cxd5 {[%clk 0:02:58]} 11. O-O {[%clk 0:02:30]}  Re8 {[%clk 0:02:53]} 12. Rad1 {[%clk 0:02:27]}  e6 {[%clk 0:02:48]} 13. Bg5 {[%clk 0:02:21]}  Qb6 {[%clk 0:02:43]} 14. Na4 {[%clk 0:02:00]}  Qc6 {[%clk 0:02:32]} 15. b3 {[%clk 0:01:54]}  Ne4 {[%clk 0:02:30]} 16. Qe3 {[%clk 0:01:48]}  Nxg5 {[%clk 0:02:28]} 17. Qxg5 {[%clk 0:01:49]}  Ba6 {[%clk 0:02:27]} 18. Bxa6 {[%clk 0:01:40]}  Qxa6 {[%clk 0:02:28]} 19. Rfe1 {[%clk 0:01:38]}  Rac8 {[%clk 0:02:26]} 20. Rd2 {[%clk 0:01:27]}  Red8 {[%clk 0:02:04]} 21. h4 {[%clk 0:01:26]}  d4 {[%clk 0:01:59]} 22. h5 {[%clk 0:01:25]}  Rd5 {[%clk 0:01:59]} 23. Qe7 {[%clk 0:01:19]}  Rxh5 {[%clk 0:01:57]} 24. Re4 {[%clk 0:01:11]}  Qa5 {[%clk 0:01:33]} 25. Rde2 {[%clk 0:01:11]}  Qc7 {[%clk 0:01:30]} 26. Qb4 {[%clk 0:01:03]}  Qh2+ {[%clk 0:01:29]} 0-1


[Site "https://www.chess.com"]

[Event "Titled Tuesday Blitz May 9 Late 2023"]
[White "Dargan, Paul A G"]
[Black "Zampronha, Wladimir Camilo"]
[WhiteFideId "416762"]
[BlackFideId "2103087"]
[WhiteElo "2042"]
[BlackElo "2176"]
[Result "0-1"]
[Round "06"]
[TimeControl "180+2"]
[Date "2023.05.09"]
[WhiteClock "0:00:00"]
[BlackClock "0:01:00"]

1. e4 {[%clk 0:03:00]}  c5 {[%clk 0:02:59]} 2. c3 {[%clk 0:03:00]}  Nf6 {[%clk 0:02:58]} 3. e5 {[%clk 0:03:01]}  Nd5 {[%clk 0:02:58]} 4. d4 {[%clk 0:03:01]}  cxd4 {[%clk 0:02:59]} 5. cxd4 {[%clk 0:03:02]}  e6 {[%clk 0:02:59]} 6. Nf3 {[%clk 0:03:02]}  b6 {[%clk 0:02:59]} 7. Nc3 {[%clk 0:03:01]}  Bb7 {[%clk 0:03:00]} 8. Bd3 {[%clk 0:02:59]}  Nxc3 {[%clk 0:03:00]} 9. bxc3 {[%clk 0:02:59]}  Qc7 {[%clk 0:03:01]} 10. Bd2 {[%clk 0:02:59]}  d6 {[%clk 0:03:02]} 11. O-O {[%clk 0:02:51]}  Nd7 {[%clk 0:03:02]} 12. Ng5 {[%clk 0:02:50]}  dxe5 {[%clk 0:03:00]} 13. Re1 {[%clk 0:02:07]}  exd4 {[%clk 0:02:32]} 14. cxd4 {[%clk 0:02:04]}  Be7 {[%clk 0:02:25]} 15. Qh5 {[%clk 0:01:49]}  Bxg5 {[%clk 0:02:17]} 16. Bxg5 {[%clk 0:01:46]}  Qd6 {[%clk 0:02:09]} 17. Rad1 {[%clk 0:01:40]}  Bd5 {[%clk 0:02:00]} 18. Qh4 {[%clk 0:01:22]}  Rc8 {[%clk 0:01:58]} 19. Bf4 {[%clk 0:01:10]}  Qe7 {[%clk 0:01:56]} 20. Bg5 {[%clk 0:00:54]}  Qd6 {[%clk 0:01:55]} 21. Bf4 {[%clk 0:00:49]}  Qa3 {[%clk 0:01:56]} 22. Re3 {[%clk 0:00:48]}  Qa4 {[%clk 0:01:45]} 23. Be2 {[%clk 0:00:17]}  Qc2 {[%clk 0:01:34]} 24. Bd6 {[%clk 0:00:15]}  Nf6 {[%clk 0:01:25]} 25. Rg3 {[%clk 0:00:08]}  Qxe2 {[%clk 0:01:24]} 26. Rf1 {[%clk 0:00:07]}  Qh5 {[%clk 0:01:14]} 27. Qf4 {[%clk 0:00:00]}  Qh6 {[%clk 0:01:00]} 0-1


[Site "https://www.chess.com"]

[Event "Titled Tuesday Blitz May 9 Late 2023"]
[White "Curtis, John"]
[Black "MunichMouse"]
[WhiteFideId "3200256"]
[WhiteElo "2203"]
[BlackElo "2276"]
[Result "1-0"]
[Round "06"]
[TimeControl "180+2"]
[Date "2023.05.09"]
[WhiteClock "0:00:44"]
[BlackClock "0:00:05"]

1. d4 {[%clk 0:03:00]}  Nf6 {[%clk 0:02:56]} 2. Nf3 {[%clk 0:03:01]}  g6 {[%clk 0:02:57]} 3. g3 {[%clk 0:03:01]}  Bg7 {[%clk 0:02:57]} 4. Bg2 {[%clk 0:03:02]}  O-O {[%clk 0:02:58]} 5. O-O {[%clk 0:03:03]}  d6 {[%clk 0:02:58]} 6. c4 {[%clk 0:03:03]}  Ne4 {[%clk 0:02:58]} 7. Nbd2 {[%clk 0:02:52]}  Nxd2 {[%clk 0:02:57]} 8. Bxd2 {[%clk 0:02:52]}  e5 {[%clk 0:02:49]} 9. Bc3 {[%clk 0:02:41]}  e4 {[%clk 0:02:48]} 10. Ne1 {[%clk 0:02:35]}  f5 {[%clk 0:02:43]} 11. f3 {[%clk 0:02:34]}  exf3 {[%clk 0:02:24]} 12. Rxf3 {[%clk 0:02:28]}  Re8 {[%clk 0:02:19]} 13. d5 {[%clk 0:02:27]}  Qe7 {[%clk 0:02:19]} 14. Bxg7 {[%clk 0:02:26]}  Qxg7 {[%clk 0:02:18]} 15. Qd2 {[%clk 0:02:16]}  Nd7 {[%clk 0:02:16]} 16. Rc3 {[%clk 0:02:13]}  Nc5 {[%clk 0:02:16]} 17. Nd3 {[%clk 0:02:12]}  Ne4 {[%clk 0:02:15]} 18. Bxe4 {[%clk 0:02:11]}  fxe4 {[%clk 0:02:13]} 19. Nf4 {[%clk 0:02:10]}  g5 {[%clk 0:02:03]} 20. Ng2 {[%clk 0:02:05]}  Bd7 {[%clk 0:01:57]} 21. c5 {[%clk 0:02:02]}  Rac8 {[%clk 0:01:21]} 22. Rac1 {[%clk 0:02:00]}  dxc5 {[%clk 0:00:46]} 23. Rxc5 {[%clk 0:02:00]}  Qe5 {[%clk 0:00:27]} 24. d6 {[%clk 0:01:40]}  Qxd6 {[%clk 0:00:27]} 25. Rxg5+ {[%clk 0:01:23]}  Kf8 {[%clk 0:00:15]} 26. Rf1+ {[%clk 0:01:00]}  Ke7 {[%clk 0:00:15]} 27. Rg7+ {[%clk 0:00:58]}  Kd8 {[%clk 0:00:13]} 28. Qg5+ {[%clk 0:00:57]}  Re7 {[%clk 0:00:13]} 29. Rf8+ {[%clk 0:00:55]}  Be8 {[%clk 0:00:14]} 30. Rgg8 {[%clk 0:00:55]}  Kd7 {[%clk 0:00:14]} 31. Ne3 {[%clk 0:00:52]}  c6 {[%clk 0:00:10]} 32. Nf5 {[%clk 0:00:51]}  Qc5+ {[%clk 0:00:08]} 33. Kg2 {[%clk 0:00:52]}  Re5 {[%clk 0:00:08]} 34. Rg7+ {[%clk 0:00:47]}  Ke6 {[%clk 0:00:08]} 35. Re7+ {[%clk 0:00:45]}  Kd5 {[%clk 0:00:08]} 36. Rxe5+ {[%clk 0:00:44]}  Kxe5 {[%clk 0:00:08]} 37. Ne7+ {[%clk 0:00:43]}  Kd4 {[%clk 0:00:08]} 38. Qxc5+ {[%clk 0:00:43]}  Kxc5 {[%clk 0:00:05]} 39. Nxc8 {[%clk 0:00:44]} 1-0


[Site "https://www.chess.com"]

[Event "Titled Tuesday Blitz May 9 Late 2023"]
[White "Torres Dominguez, David"]
[Black "Harish, Neeraj"]
[WhiteFideId "2220857"]
[BlackFideId "30958130"]
[WhiteElo "1999"]
[BlackElo "1879"]
[Result "1-0"]
[Round "06"]
[TimeControl "180+2"]
[Date "2023.05.09"]
[WhiteClock "0:00:53"]
[BlackClock "0:00:00"]

1. e4 {[%clk 0:02:59]}  c5 {[%clk 0:02:55]} 2. Nc3 {[%clk 0:02:58]}  Nc6 {[%clk 0:02:55]} 3. Bb5 {[%clk 0:02:57]}  Nd4 {[%clk 0:02:55]} 4. Bc4 {[%clk 0:02:56]}  e6 {[%clk 0:02:46]} 5. Nge2 {[%clk 0:02:55]}  Nf6 {[%clk 0:02:43]} 6. O-O {[%clk 0:02:54]}  a6 {[%clk 0:02:41]} 7. Bb3 {[%clk 0:02:51]}  d5 {[%clk 0:02:37]} 8. exd5 {[%clk 0:02:45]}  exd5 {[%clk 0:02:36]} 9. d3 {[%clk 0:02:37]}  Nc6 {[%clk 0:02:32]} 10. Nf4 {[%clk 0:02:33]}  d4 {[%clk 0:02:13]} 11. Ne4 {[%clk 0:02:31]}  Nxe4 {[%clk 0:02:08]} 12. Re1 {[%clk 0:02:29]}  Be7 {[%clk 0:02:02]} 13. Rxe4 {[%clk 0:02:26]}  O-O {[%clk 0:02:02]} 14. Qh5 {[%clk 0:02:14]}  g6 {[%clk 0:01:55]} 15. Nxg6 {[%clk 0:02:10]}  hxg6 {[%clk 0:01:46]} 16. Qxg6+ {[%clk 0:02:10]}  Kh8 {[%clk 0:01:47]} 17. Qh6+ {[%clk 0:01:54]}  Kg8 {[%clk 0:01:47]} 18. Qg6+ {[%clk 0:01:49]}  Kh8 {[%clk 0:01:46]} 19. Bxf7 {[%clk 0:01:32]}  Rxf7 {[%clk 0:00:43]} 20. Qxf7 {[%clk 0:01:32]}  Bd7 {[%clk 0:00:37]} 21. Bh6 {[%clk 0:01:24]}  Bf6 {[%clk 0:00:20]} 22. Rae1 {[%clk 0:01:07]}  Nb4 {[%clk 0:00:00]} 23. Re7 {[%clk 0:00:53]} 1-0


[Site "https://www.chess.com"]

[Event "Titled Tuesday Blitz May 9 Late 2023"]
[White "Leschinsky, Gary"]
[Black "Dias, Joao Batista"]
[WhiteFideId "30951321"]
[BlackFideId "2108240"]
[WhiteElo "1855"]
[BlackElo "1907"]
[Result "1-0"]
[Round "06"]
[TimeControl "180+2"]
[Date "2023.05.09"]
[WhiteClock "0:00:12"]
[BlackClock "0:00:00"]

1. e4 {[%clk 0:02:37]}  e6 {[%clk 0:02:03]} 2. d4 {[%clk 0:02:30]}  d5 {[%clk 0:02:02]} 3. Nc3 {[%clk 0:02:30]}  Be7 {[%clk 0:02:02]} 4. e5 {[%clk 0:02:30]}  c5 {[%clk 0:02:00]} 5. Nce2 {[%clk 0:02:23]}  cxd4 {[%clk 0:01:59]} 6. Nxd4 {[%clk 0:02:23]}  Nc6 {[%clk 0:02:00]} 7. f4 {[%clk 0:02:23]}  Bc5 {[%clk 0:01:55]} 8. Ngf3 {[%clk 0:02:22]}  Nge7 {[%clk 0:01:55]} 9. c3 {[%clk 0:02:22]}  O-O {[%clk 0:01:55]} 10. Be3 {[%clk 0:02:23]}  b6 {[%clk 0:01:54]} 11. Qd2 {[%clk 0:02:23]}  Bb7 {[%clk 0:01:54]} 12. Bd3 {[%clk 0:02:22]}  g6 {[%clk 0:01:52]} 13. g4 {[%clk 0:02:18]}  Rc8 {[%clk 0:01:48]} 14. h4 {[%clk 0:02:17]}  Bxd4 {[%clk 0:01:45]} 15. cxd4 {[%clk 0:02:16]}  f5 {[%clk 0:01:38]} 16. g5 {[%clk 0:02:14]}  Rf7 {[%clk 0:01:36]} 17. h5 {[%clk 0:02:14]}  Na5 {[%clk 0:01:26]} 18. Qh2 {[%clk 0:02:12]}  Kf8 {[%clk 0:01:22]} 19. hxg6 {[%clk 0:02:12]}  hxg6 {[%clk 0:01:22]} 20. Qh8+ {[%clk 0:02:10]}  Ng8 {[%clk 0:01:22]} 21. Rh7 {[%clk 0:02:10]}  Qe7 {[%clk 0:01:21]} 22. Rxf7+ {[%clk 0:02:07]}  Qxf7 {[%clk 0:01:20]} 23. Nd2 {[%clk 0:02:06]}  Qg7 {[%clk 0:01:20]} 24. Qxg7+ {[%clk 0:02:05]}  Kxg7 {[%clk 0:01:20]} 25. Ke2 {[%clk 0:02:06]}  Ne7 {[%clk 0:01:19]} 26. Rh1 {[%clk 0:02:06]}  Nc4 {[%clk 0:01:15]} 27. b3 {[%clk 0:02:03]}  Nxe3 {[%clk 0:01:08]} 28. Kxe3 {[%clk 0:02:02]}  Nc6 {[%clk 0:01:08]} 29. Rc1 {[%clk 0:01:59]}  Nb4 {[%clk 0:01:07]} 30. Rxc8 {[%clk 0:01:59]}  Bxc8 {[%clk 0:01:07]} 31. Bb1 {[%clk 0:02:00]}  Kf7 {[%clk 0:01:07]} 32. a3 {[%clk 0:02:01]}  Nc6 {[%clk 0:01:03]} 33. Bd3 {[%clk 0:02:01]}  Na5 {[%clk 0:01:02]} 34. b4 {[%clk 0:02:00]}  Nc6 {[%clk 0:01:01]} 35. Nb1 {[%clk 0:02:01]}  Ke7 {[%clk 0:01:01]} 36. Nc3 {[%clk 0:02:01]}  a5 {[%clk 0:01:01]} 37. b5 {[%clk 0:01:55]}  Nd8 {[%clk 0:00:58]} 38. Na4 {[%clk 0:01:55]}  Kd7 {[%clk 0:00:50]} 39. Nxb6+ {[%clk 0:01:34]}  Kc7 {[%clk 0:00:50]} 40. Na4 {[%clk 0:01:23]}  Bd7 {[%clk 0:00:37]} 41. Nc5 {[%clk 0:01:23]}  Bc8 {[%clk 0:00:37]} 42. a4 {[%clk 0:01:23]}  Kb6 {[%clk 0:00:36]} 43. Kd2 {[%clk 0:01:23]}  Nb7 {[%clk 0:00:33]} 44. Nb3 {[%clk 0:01:22]}  Nd8 {[%clk 0:00:32]} 45. Kc3 {[%clk 0:01:22]}  Bd7 {[%clk 0:00:32]} 46. Be2 {[%clk 0:01:21]}  Be8 {[%clk 0:00:31]} 47. Bf3 {[%clk 0:01:20]}  Bf7 {[%clk 0:00:30]} 48. Nc5 {[%clk 0:01:18]}  Be8 {[%clk 0:00:30]} 49. Be2 {[%clk 0:01:16]}  Kc7 {[%clk 0:00:27]} 50. Bd3 {[%clk 0:01:12]}  Kb6 {[%clk 0:00:27]} 51. Na6 {[%clk 0:01:12]}  Nb7 {[%clk 0:00:24]} 52. Bc2 {[%clk 0:01:09]}  Bd7 {[%clk 0:00:24]} 53. Bb3 {[%clk 0:01:06]}  Be8 {[%clk 0:00:24]} 54. Bc2 {[%clk 0:01:05]}  Bd7 {[%clk 0:00:24]} 55. Bb1 {[%clk 0:01:06]}  Be8 {[%clk 0:00:24]} 56. Nb8 {[%clk 0:01:04]}  Kc7 {[%clk 0:00:22]} 57. Na6+ {[%clk 0:01:03]}  Kb6 {[%clk 0:00:22]} 58. Bd3 {[%clk 0:01:04]}  Bd7 {[%clk 0:00:20]} 59. Nb8 {[%clk 0:01:04]}  Be8 {[%clk 0:00:20]} 60. Nc6 {[%clk 0:00:58]}  Bxc6 {[%clk 0:00:19]} 61. bxc6 {[%clk 0:00:59]}  Kxc6 {[%clk 0:00:20]} 62. Bb5+ {[%clk 0:01:00]}  Kc7 {[%clk 0:00:19]} 63. Be8 {[%clk 0:01:00]}  Nd8 {[%clk 0:00:18]} 64. Bxg6 {[%clk 0:01:01]}  Kd7 {[%clk 0:00:18]} 65. Bh5 {[%clk 0:00:47]}  Ke7 {[%clk 0:00:19]} 66. Kd3 {[%clk 0:00:47]}  Nc6 {[%clk 0:00:18]} 67. Bd1 {[%clk 0:00:45]}  Nb4+ {[%clk 0:00:18]} 68. Ke3 {[%clk 0:00:45]}  Nc6 {[%clk 0:00:18]} 69. Bc2 {[%clk 0:00:44]}  Kf7 {[%clk 0:00:17]} 70. Bd3 {[%clk 0:00:42]}  Nb4 {[%clk 0:00:16]} 71. Bb5 {[%clk 0:00:42]}  Nc2+ {[%clk 0:00:16]} 72. Kd3 {[%clk 0:00:42]}  Ne1+ {[%clk 0:00:15]} 73. Ke2 {[%clk 0:00:40]}  Nc2 {[%clk 0:00:15]} 74. Kd3 {[%clk 0:00:40]}  Ne1+ {[%clk 0:00:15]} 75. Kc3 {[%clk 0:00:36]}  Ng2 {[%clk 0:00:14]} 76. Be2 {[%clk 0:00:33]}  Nxf4 {[%clk 0:00:14]} 77. Bf3 {[%clk 0:00:34]}  Ng6 {[%clk 0:00:12]} 78. Bh5 {[%clk 0:00:33]}  Kg7 {[%clk 0:00:12]} 79. Kd2 {[%clk 0:00:34]}  Ne7 {[%clk 0:00:12]} 80. Ke3 {[%clk 0:00:33]}  Nc6 {[%clk 0:00:12]} 81. Be8 {[%clk 0:00:32]}  Nb4 {[%clk 0:00:10]} 82. g6 {[%clk 0:00:31]}  Nc2+ {[%clk 0:00:10]} 83. Kd3 {[%clk 0:00:31]}  Ne1+ {[%clk 0:00:10]} 84. Ke2 {[%clk 0:00:31]}  Nc2 {[%clk 0:00:09]} 85. Kd3 {[%clk 0:00:32]}  Ne1+ {[%clk 0:00:09]} 86. Kc3 {[%clk 0:00:30]}  Nf3 {[%clk 0:00:09]} 87. Bf7 {[%clk 0:00:22]}  Ng5 {[%clk 0:00:09]} 88. Be8 {[%clk 0:00:23]}  Nf3 {[%clk 0:00:09]} 89. Kd3 {[%clk 0:00:23]}  Ng5 {[%clk 0:00:09]} 90. Ke3 {[%clk 0:00:23]}  Ne4 {[%clk 0:00:09]} 91. Kf4 {[%clk 0:00:21]}  Nd2 {[%clk 0:00:09]} 92. Bf7 {[%clk 0:00:21]}  Nb3 {[%clk 0:00:09]} 93. Bxe6 {[%clk 0:00:20]}  Nxd4 {[%clk 0:00:09]} 94. Bxf5 {[%clk 0:00:18]}  Nc6 {[%clk 0:00:07]} 95. Bd3 {[%clk 0:00:17]}  Ne7 {[%clk 0:00:07]} 96. e6 {[%clk 0:00:13]}  Kf6 {[%clk 0:00:07]} 97. g7 {[%clk 0:00:13]}  Kxe6 {[%clk 0:00:06]} 98. Bh7 {[%clk 0:00:11]}  Kd6 {[%clk 0:00:03]} 99. g8=Q {[%clk 0:00:10]}  Nxg8 {[%clk 0:00:03]} 100. Bxg8 {[%clk 0:00:11]}  Kc5 {[%clk 0:00:03]} 101. Bf7 {[%clk 0:00:10]}  Kb4 {[%clk 0:00:03]} 102. Be8 {[%clk 0:00:11]}  Kc4 {[%clk 0:00:02]} 103. Ke3 {[%clk 0:00:11]}  d4+ {[%clk 0:00:02]} 104. Kd2 {[%clk 0:00:11]}  Kb4 {[%clk 0:00:00]} 105. Bb5 {[%clk 0:00:12]} 1-0


[Site "https://www.chess.com"]

[Event "Titled Tuesday Blitz May 9 Late 2023"]
[White "Manon-og, Ramon Jr."]
[Black "James, Stuart"]
[WhiteFideId "5200776"]
[BlackFideId "7400489"]
[WhiteElo "2293"]
[BlackElo "1950"]
[Result "0-1"]
[Round "06"]
[TimeControl "180+2"]
[Date "2023.05.09"]
[WhiteClock "0:01:10"]
[BlackClock "0:02:04"]

1. d4 {[%clk 0:03:00]}  Nf6 {[%clk 0:02:57]} 2. Bf4 {[%clk 0:03:00]}  d6 {[%clk 0:02:55]} 3. e3 {[%clk 0:02:59]}  Nbd7 {[%clk 0:02:54]} 4. Nf3 {[%clk 0:02:56]}  g6 {[%clk 0:02:52]} 5. Bd3 {[%clk 0:02:53]}  Bg7 {[%clk 0:02:51]} 6. h3 {[%clk 0:02:46]}  O-O {[%clk 0:02:51]} 7. O-O {[%clk 0:02:45]}  Re8 {[%clk 0:02:49]} 8. Nbd2 {[%clk 0:02:44]}  e5 {[%clk 0:02:48]} 9. dxe5 {[%clk 0:02:43]}  dxe5 {[%clk 0:02:48]} 10. Bg3 {[%clk 0:02:37]}  e4 {[%clk 0:02:48]} 11. Bc4 {[%clk 0:02:18]}  exf3 {[%clk 0:02:45]} 12. Nxf3 {[%clk 0:02:18]}  Nb6 {[%clk 0:02:42]} 13. Qxd8 {[%clk 0:02:15]}  Rxd8 {[%clk 0:02:41]} 14. Bb3 {[%clk 0:02:13]}  Be6 {[%clk 0:02:38]} 15. Bxe6 {[%clk 0:02:09]}  fxe6 {[%clk 0:02:39]} 16. Bxc7 {[%clk 0:02:08]}  Rdc8 {[%clk 0:02:36]} 17. Bxb6 {[%clk 0:02:08]}  axb6 {[%clk 0:02:36]} 18. c3 {[%clk 0:02:08]}  Ne4 {[%clk 0:02:32]} 19. Rfd1 {[%clk 0:01:54]}  Rd8 {[%clk 0:02:30]} 20. Rxd8+ {[%clk 0:01:50]}  Rxd8 {[%clk 0:02:30]} 21. a4 {[%clk 0:01:46]}  Nc5 {[%clk 0:02:30]} 22. Ra3 {[%clk 0:01:34]}  Ra8 {[%clk 0:02:28]} 23. b4 {[%clk 0:01:17]}  Rxa4 {[%clk 0:02:26]} 24. Rxa4 {[%clk 0:01:16]}  Nxa4 {[%clk 0:02:26]} 25. c4 {[%clk 0:01:16]}  Nb2 {[%clk 0:02:22]} 26. c5 {[%clk 0:01:15]}  bxc5 {[%clk 0:02:21]} 27. bxc5 {[%clk 0:01:15]}  Nd3 {[%clk 0:02:22]} 28. Nd4 {[%clk 0:01:09]}  Nxc5 {[%clk 0:02:19]} 29. Kf1 {[%clk 0:01:08]}  Bxd4 {[%clk 0:02:18]} 30. exd4 {[%clk 0:01:08]}  Nb3 {[%clk 0:02:19]} 31. Ke2 {[%clk 0:01:07]}  Nxd4+ {[%clk 0:02:19]} 32. Kd3 {[%clk 0:01:07]}  e5 {[%clk 0:02:20]} 33. Ke4 {[%clk 0:01:07]}  b5 {[%clk 0:02:19]} 34. Kxe5 {[%clk 0:01:05]}  Nc6+ {[%clk 0:02:19]} 35. Kd5 {[%clk 0:01:04]}  b4 {[%clk 0:02:19]} 36. Kc4 {[%clk 0:01:01]}  Kf7 {[%clk 0:02:19]} 37. g4 {[%clk 0:00:58]}  g5 {[%clk 0:02:17]} 38. f3 {[%clk 0:00:58]}  Kf6 {[%clk 0:02:17]} 39. Kb3 {[%clk 0:00:56]}  Ke5 {[%clk 0:02:17]} 40. Kc4 {[%clk 0:00:55]}  Kf4 {[%clk 0:02:17]} 41. Kb3 {[%clk 0:00:55]}  Kxf3 {[%clk 0:02:17]} 42. Kc4 {[%clk 0:00:56]}  Kg3 {[%clk 0:02:18]} 43. Kb3 {[%clk 0:00:56]}  Kxh3 {[%clk 0:02:18]} 44. Kc4 {[%clk 0:00:56]}  Kxg4 {[%clk 0:02:18]} 45. Kb3 {[%clk 0:00:57]}  Kf3 {[%clk 0:02:18]} 46. Kc4 {[%clk 0:00:58]}  g4 {[%clk 0:02:18]} 47. Kb3 {[%clk 0:00:58]}  g3 {[%clk 0:02:18]} 48. Kc4 {[%clk 0:00:58]}  g2 {[%clk 0:02:18]} 49. Kb3 {[%clk 0:00:59]}  g1=R {[%clk 0:02:18]} 50. Kc4 {[%clk 0:01:00]}  h5 {[%clk 0:02:18]} 51. Kb3 {[%clk 0:01:00]}  h4 {[%clk 0:02:18]} 52. Kc4 {[%clk 0:01:01]}  h3 {[%clk 0:02:18]} 53. Kb3 {[%clk 0:01:01]}  h2 {[%clk 0:02:19]} 54. Kc4 {[%clk 0:01:02]}  h1=R {[%clk 0:02:18]} 55. Kb3 {[%clk 0:01:03]}  Ke4 {[%clk 0:02:16]} 56. Kc4 {[%clk 0:01:04]}  Rc1+ {[%clk 0:02:13]} 57. Kb3 {[%clk 0:01:05]}  Rh3+ {[%clk 0:02:12]} 58. Ka4 {[%clk 0:01:06]}  b3 {[%clk 0:02:09]} 59. Kb5 {[%clk 0:01:06]}  b2 {[%clk 0:02:07]} 60. Kb6 {[%clk 0:01:07]}  b1=Q+ {[%clk 0:02:06]} 61. Kc7 {[%clk 0:01:08]}  Ne5+ {[%clk 0:02:05]} 62. Kd6 {[%clk 0:01:09]}  Rh6+ {[%clk 0:02:05]} 63. Ke7 {[%clk 0:01:09]}  Rc7+ {[%clk 0:02:04]} 64. Kf8 {[%clk 0:01:10]}  Qb8# {[%clk 0:02:04]} 0-1


[Site "https://www.chess.com"]

[Event "Titled Tuesday Blitz May 9 Late 2023"]
[White "dorpato"]
[Black "Sanchez, Robert"]
[BlackFideId "2034360"]
[WhiteElo "2009"]
[BlackElo "1861"]
[Result "1-0"]
[Round "06"]
[TimeControl "180+2"]
[Date "2023.05.09"]
[WhiteClock "0:00:17"]
[BlackClock "0:02:10"]

1. e4 {[%clk 0:03:00]}  e6 {[%clk 0:03:00]} 2. d4 {[%clk 0:03:00]}  d5 {[%clk 0:03:00]} 3. e5 {[%clk 0:03:01]}  b6 {[%clk 0:02:58]} 4. c3 {[%clk 0:03:00]}  Qd7 {[%clk 0:02:58]} 5. Nf3 {[%clk 0:02:59]}  Ba6 {[%clk 0:02:58]} 6. Bxa6 {[%clk 0:02:57]}  Nxa6 {[%clk 0:02:59]} 7. Qe2 {[%clk 0:02:56]}  Nb8 {[%clk 0:02:58]} 8. b3 {[%clk 0:02:51]}  c5 {[%clk 0:02:58]} 9. Bb2 {[%clk 0:02:50]}  Nc6 {[%clk 0:02:58]} 10. O-O {[%clk 0:02:44]}  Nh6 {[%clk 0:02:57]} 11. Na3 {[%clk 0:02:36]}  Be7 {[%clk 0:02:55]} 12. Nc2 {[%clk 0:02:35]}  O-O {[%clk 0:02:54]} 13. Rac1 {[%clk 0:02:34]}  cxd4 {[%clk 0:02:49]} 14. cxd4 {[%clk 0:02:33]}  Nf5 {[%clk 0:02:47]} 15. Ne3 {[%clk 0:02:32]}  Nxe3 {[%clk 0:02:47]} 16. Qxe3 {[%clk 0:02:30]}  Rac8 {[%clk 0:02:46]} 17. Qf4 {[%clk 0:02:23]}  Nb4 {[%clk 0:02:45]} 18. Ra1 {[%clk 0:01:47]}  h6 {[%clk 0:02:32]} 19. Bc1 {[%clk 0:01:08]}  Qb5 {[%clk 0:02:20]} 20. Qg3 {[%clk 0:00:59]}  Kh8 {[%clk 0:02:19]} 21. Qh3 {[%clk 0:00:30]}  Qd3 {[%clk 0:02:16]} 22. Be3 {[%clk 0:00:19]}  Qe4 {[%clk 0:02:11]} 23. Rfe1 {[%clk 0:00:17]}  Nc2 {[%clk 0:02:10]} 1-0


[Site "https://www.chess.com"]